fUSD/lending_fUSD_20260313
["ID","MTS","AMOUNT","RATE_DAILY","PERIOD"]
[408335516,1773439907964,-3122.87180448,0.00049178,120]
[408335517,1773439907973,-1857.47679849,0.0004919,120]
[408335518,1773439907983,-155.0,0.000492,120]
[408335519,1773439907991,-5721.4979,0.000493,2]
[408335520,1773439908001,-152.0,0.00049314,30]
[408335521,1773439908010,-10000.0,0.00049315,120]
[408335522,1773439908019,-10000.0,0.00049315,120]
[408335523,1773439908028,-10000.0,0.00049315,120]
[408335524,1773439908037,-1156.07639435,0.00049315,120]
[408335525,1773439908047,-1000.0,0.00049315,120]
[408335526,1773439908056,-1000.0,0.00049315,120]
[408335527,1773439908065,-568.16094119,0.00049315,120]
[408335528,1773439908074,-403.370167,0.00049315,90]
[408335529,1773439908084,-403.370167,0.00049315,90]
[408335530,1773439908094,-403.370167,0.00049315,90]
[408335531,1773439908103,-403.370167,0.00049315,90]
[408335532,1773439908112,-403.370167,0.00049315,90]
[408335533,1773439908121,-403.370167,0.00049315,90]
[408335534,1773439908130,-403.370167,0.00049315,90]
[408335535,1773439908139,-403.370167,0.00049315,90]
[408335536,1773439908148,-403.370167,0.00049315,90]
[408335537,1773439908157,-403.370167,0.00049315,90]
[408335538,1773439908167,-403.370167,0.00049315,90]
[408335539,1773439908176,-403.370167,0.00049315,90]
[408335540,1773439908186,-403.370167,0.00049315,90]
[408335541,1773439908195,-403.370167,0.00049315,90]
[408335542,1773439908205,-403.370167,0.00049315,90]
[408335543,1773439908218,-403.370167,0.00049315,90]
[408335544,1773439908228,-403.370167,0.00049315,90]
[408335545,1773439908238,-403.370167,0.00049315,90]
[408335546,1773439908247,-403.370167,0.00049315,90]
[408335547,1773439908256,-403.370164,0.00049315,90]
[408335548,1773439908266,-157.02,0.00049315,30]
[408335549,1773439908275,-150.0,0.00049359,120]
[408335550,1773439908284,-6736.51,0.000494,120]
[408335551,1773439908294,-10143.97151395,0.000494,120]
[408335552,1773439908303,-485.97,0.0004947,120]
[408335553,1773439908312,-494.78,0.0004947,120]
[408335554,1773439908322,-171.26564348,0.00049475,120]
[408335555,1773439908331,-193.58737343,0.00049479,120]
[408335556,1773439908340,-200000.0,0.0004949,60]
[408335557,1773439908349,-50000.0,0.000495,50]
[408335558,1773439908358,-50000.0,0.000495,49]
[408335559,1773439908367,-50000.0,0.000495,48]
[408335560,1773439908376,-513.59,0.000495,120]
[408335561,1773439908385,-501056.51618624,0.000495,120]
[408335562,1773439908394,-940.0,0.000495,120]
[408335563,1773439908403,-242.14296375,0.000495,120]
[408335564,1773439908412,-5000000.0,0.000495,120]
[408335565,1773439908424,-5000000.0,0.000495,120]
[408335566,1773439908434,-5000000.0,0.000495,120]
[408335567,1773439908443,-5000000.0,0.000495,120]
[408335568,1773439908452,-2400938.96550333,0.000495,120]
[408335569,1773439908796,-3723.70017787,0.000198,2]
[408335570,1773439908807,-151.0,0.00045068,120]
[408335571,1773439908816,-16550.29982204,0.000495,120]
[408335572,1773439908827,-235162.52457459,0.000495,120]
[408335573,1773440045198,563.83,0.00032877,120]
[408335574,1773440345121,563.83,0.00032877,120]
[408335575,1773440735145,-165.23,0.00015161,2]
[408335576,1773440735167,-195.0,0.00016677,2]
[408335577,1773440735189,-165.23,0.00018193,2]
[408335578,1773440735213,-168.0,0.00019298,2]
[408335579,1773440735235,-168.0,0.00019317,2]
[408335580,1773440735257,-168.0,0.00019331,2]
[408335581,1773440735280,-168.0,0.00019363,2]
[408335582,1773440735302,-168.0,0.00019499,2]
[408335583,1773440735323,-709.02520117,0.00019597,2]
[408335584,1773440826084,-1974.37341909,0.00019597,2]
[408335585,1773440844138,-196.79463856,0.00019597,2]
[408335589,1773441032214,-299.25807466,0.000195,2]
[408335590,1773441032225,-3682.99663722,0.00019597,2]
[408335591,1773441032235,-168.0,0.00019638,2]
[408335592,1773441032244,-168.0,0.00019694,2]
[408335593,1773441032253,-168.0,0.00019724,2]
[408335594,1773441032263,-867.58,0.00019773,2]
[408335595,1773441032272,-168.0,0.00019797,2]
[408335596,1773441032282,-25209.64265804,0.00019873,2]
[408335597,1773441032293,-1025.56706708,0.00019873,2]
[408335598,1773441032304,-944.25414639,0.00019873,2]
[408335599,1773441032322,-321.0,0.00019873,2]
[408335613,1773441038315,-552.93113016,0.00019873,2]
[408335616,1773441038565,-678.55037616,0.00019873,2]
[408335617,1773441038577,-759.95930988,0.00019873,2]
[408335618,1773441038588,-1160.49195712,0.00019873,2]
[408335619,1773441038599,-448.01181159,0.00019873,2]
[408335622,1773441038672,-21.8660709,0.00019873,2]
[408335623,1773441038684,-4992.61308658,0.00019873,2]
[408335624,1773441038696,-2256.70555665,0.00019873,2]
[408335625,1773441038708,-706.5,0.00019873,2]
[408335641,1773441040648,-591.07158026,0.00019873,2]
[408335642,1773441040660,-644.38,0.00019873,2]
[408335643,1773441040901,-31828.45441537,0.00019873,2]
[408335644,1773441041047,-1629.64698543,0.00019873,2]
[408335669,1773441046282,-160.6932941,0.00019873,2]
[408335670,1773441046483,-283.253,0.00019873,2]
[408335671,1773441046495,-1879.45013786,0.00019873,2]
[408335672,1773441046546,-6651.14603307,0.00019873,2]
[408335673,1773441046561,-7076.0,0.00019873,2]
[408335677,1773441152519,172.88,0.00028221,120]
[408335678,1773441666927,500.0,0.00030907,120]
[408335679,1773441681054,500.0,0.00030907,120]
[408335680,1773441801805,504.30027202,0.000185,7]
[408335681,1773441925228,281.0,0.0003287,120]
[408335682,1773441934134,-200.0,0.0001937,2]
[408335683,1773441934157,-7.44852012,0.00019376,2]
[408335684,1773441947022,500.0,0.00029122,120]
[408335685,1773442049145,506.85,0.00029122,120]
[408335686,1773442104121,500.0,0.00029122,120]
[408335687,1773442132571,500.0,0.00029122,120]
[408335690,1773442231343,-592.55147988,0.00019376,2]
[408335692,1773442231354,-500.0,0.00019376,2]
[408335693,1773442231364,-300.0,0.00019379,2]
[408335694,1773442231374,-300.0,0.00019391,2]
[408335695,1773442231384,-302.35737128,0.00019391,2]
[408335696,1773442231394,-500.0,0.000194,2]
[408335697,1773442231404,-580.84872965,0.000194,2]
[408335698,1773442231414,-288.67580439,0.000194,2]
[408335699,1773442231424,-619.0,0.0001947,2]
[408335700,1773442231434,-1200.0,0.00019772,2]
[408335701,1773442231444,-389.31349611,0.00019773,2]
[408335702,1773442231461,-1564.93870389,0.00019773,2]
[408335703,1773442231471,-619.0,0.00019825,2]
[408335704,1773442231482,-488.42205455,0.00019832,2]
[408335705,1773442231495,-130.57794545,0.00019832,2]
[408335706,1773442231505,-400.0,0.00019873,2]
[408335707,1773442231516,-29.32574131,0.00019928,2]
[408335708,1773442231528,-138.67425869,0.00019928,2]
[408335709,1773442231541,-404.27109942,0.00019961,2]
[408335710,1773442231551,-146.21600393,0.0002,2]
[408335711,1773442231563,-1130.87856688,0.0002,2]
[408335712,1773442231576,-921.3654297,0.0002,2]
[408335713,1773442231587,-619.0,0.00020033,2]
[408335714,1773442231597,-168.0,0.00020088,2]
[408335715,1773442231608,-168.0,0.00020103,2]
[408335717,1773442231621,-547.40444268,0.00020137,2]
[408335719,1773442231631,-168.0,0.00020229,2]
[408335720,1773442231642,-619.0,0.0002026,2]
[408335721,1773442231653,-363.24019955,0.00020342,2]
[408335722,1773442231671,-255.75980045,0.00020342,2]
[408335723,1773442231682,-124.02012762,0.000204,7]
[408335724,1773442231694,-172.87987238,0.000204,7]
[408335725,1773442231704,-1100.0,0.000204,2]
[408335726,1773442231714,-619.0,0.00020439,2]
[408335727,1773442231724,-168.0,0.00020622,2]
[408335728,1773442231734,-619.0,0.00020639,2]
[408335729,1773442231746,-168.0,0.00020728,2]
[408335730,1773442231755,-680.87012762,0.00020732,2]
[408335731,1773442231768,-415.37987238,0.00020732,2]
[408335732,1773442231778,-168.0,0.00020732,2]
[408335733,1773442231788,-62.83012762,0.00020756,2]
[408335734,1773442231804,-556.16987238,0.00020756,2]
[408335735,1773442231814,-619.0,0.00020769,2]
[408335736,1773442231824,-451.13279661,0.00020797,2]
[408335741,1773442237465,-167.86720339,0.00020797,2]
[408335742,1773442237475,-1494.40119607,0.00020823,2]
[408335743,1773442237580,-1989.45402679,0.00020823,2]
[408335744,1773442237694,-1905.05167747,0.00020823,2]
[408335761,1773442239741,-1272.02843119,0.00020823,2]
[408335762,1773442239752,-694.38830631,0.00020823,2]
[408335763,1773442239914,-58241.95336217,0.00020823,2]
[408335764,1773442239924,-500.0,0.00020873,2]
[408335765,1773442239935,-500.0,0.00020873,2]
[408335766,1773442239944,-168.0,0.00020918,2]
[408335767,1773442239953,-619.0,0.00020923,2]
[408335768,1773442239963,-619.0,0.00020943,2]
[408335769,1773442239972,-619.0,0.00021039,2]
[408335770,1773442239982,-619.0,0.00021041,2]
[408335771,1773442239992,-168.0,0.00021049,2]
[408335772,1773442240002,-619.0,0.00021075,2]
[408335773,1773442240011,-20251.97,0.00021207,2]
[408335774,1773442240021,-165.23,0.00021226,2]
[408335775,1773442240030,-705.6,0.00021262,2]
[408335776,1773442240040,-200.0,0.0002129,2]
[408335777,1773442240049,-500.0,0.00021307,2]
[408335778,1773442240060,-600.0,0.00021307,2]
[408335779,1773442240069,-500.0,0.00021307,2]
[408335780,1773442240080,-195.0,0.00021314,2]
[408335781,1773442240090,-443.3231332,0.00021314,2]
[408335782,1773442240099,-362.81856688,0.00021314,2]
[408335783,1773442240109,-300.0,0.00021314,2]
[408335784,1773442240119,-300.0,0.00021314,2]
[408335785,1773442240129,-1651.0,0.00021379,2]
[408335786,1773442240139,-1000.0,0.00021421,2]
[408335788,1773442240148,-1000.0,0.00021421,2]
[408335789,1773442240158,-705.6,0.00021536,2]
[408335790,1773442240168,-2000.0,0.0002158,2]
[408335791,1773442240178,-500.0,0.00021581,2]
[408335792,1773442240187,-486.43,0.00021591,2]
[408335793,1773442240196,-500.0,0.00021592,2]
[408335794,1773442240205,-1371.27,0.00021595,2]
[408335795,1773442240214,-1680.0,0.00021638,2]
[408335796,1773442240224,-710.75,0.00021773,2]
[408335797,1773442240233,-705.6,0.0002181,2]
[408335798,1773442240243,-537.44,0.00021858,2]
[408335799,1773442240253,-486.43,0.00021865,2]
[408335800,1773442240263,-1500.0,0.00021968,2]
[408335801,1773442240272,-1500.0,0.00021968,2]
[408335802,1773442240282,-710.75,0.00022047,2]
[408335803,1773442240291,-550.0,0.00022084,2]
[408335804,1773442240301,-399.12,0.00022107,2]
[408335805,1773442240310,-486.43,0.00022139,2]
[408335806,1773442240320,-503.06273369,0.00022148,2]
[408335807,1773442240330,-500.0,0.00022148,2]
[408335808,1773442240340,-500.0,0.00022168,2]
[408335809,1773442240349,-500.0,0.00022168,2]
[408335810,1773442240360,-500.0,0.00022168,2]
[408335811,1773442240369,-500.0,0.00022168,2]
[408335812,1773442240379,-710.75,0.00022321,2]
[408335813,1773442240389,-486.43,0.00022413,2]
[408335814,1773442240399,-1284.93031767,0.00022516,2]
[408335815,1773442240409,-2000.0,0.00022516,2]
[408335816,1773442240418,-299.99,0.00022562,7]
[408335817,1773442240427,-999.99,0.00022562,2]
[408335818,1773442240436,-150.99,0.00022562,2]
[408335819,1773442240446,-9999.99,0.00022562,2]
[408335820,1773442240455,-710.75,0.00022595,2]
[408335821,1773442240465,-486.47,0.00022687,2]
[408335822,1773442240474,-1000.0,0.00022696,2]
[408335823,1773442240485,-1000.0,0.00022716,2]
[408335824,1773442240495,-1000.0,0.00022716,2]
[408335825,1773442240504,-500.0,0.00022716,2]
[408335826,1773442240515,-710.75,0.00022868,2]
[408335827,1773442240524,-163.377,0.00022917,2]
[408335828,1773442240535,-3508.0,0.00022917,2]
[408335829,1773442240545,-620.0,0.00022917,2]
[408335830,1773442240554,-1353.219,0.00022917,2]
[408335831,1773442240563,-1259.0,0.00022917,2]
[408335832,1773442240573,-932.241,0.00022917,2]
[408335833,1773442240582,-1221.73,0.00022917,2]
[408335834,1773442240591,-418.472,0.00022917,2]
[408335835,1773442240601,-216.0,0.00022917,2]
[408335836,1773442240611,-5998.0,0.00022917,2]
[408335837,1773442240624,-500.0,0.00023064,2]
[408335838,1773442240634,-710.75,0.00023142,2]
[408335839,1773442240643,-783.03,0.00023207,2]
[408335840,1773442240652,-979.47,0.00023207,2]
[408335841,1773442240666,-399.12,0.00023212,2]
[408335842,1773442240675,-1500.0,0.00023244,2]
[408335843,1773442240686,-500.0,0.00023264,2]
[408335844,1773442240698,-1500.0,0.00023264,2]
[408335845,1773442240708,-710.75,0.00023416,2]
[408335846,1773442240718,-500.0,0.00023518,2]
[408335847,1773442240728,-1200.0,0.0002368,2]
[408335848,1773442240738,-710.79664044,0.0002369,2]
[408335849,1773442240747,-150.0,0.00023788,2]
[408335850,1773442240757,-459.11608175,0.00023791,2]
[408335851,1773442240767,-475.66916377,0.00024008,2]
[408335852,1773442240776,-1000.0,0.00024191,2]
[408335853,1773442240785,-165.23,0.00024258,2]
[408335854,1773442240795,-2000.0,0.00024278,2]
[408335855,1773442240804,-399.12,0.00024318,2]
[408335856,1773442240814,-1000.0,0.00024465,2]
[408335857,1773442240824,-1000.0,0.00024713,2]
[408335858,1773442240833,-1000.0,0.00024739,2]
[408335859,1773442240843,-2567.92,0.00024906,2]
[408335860,1773442240853,-1000.0,0.00025013,2]
[408335861,1773442240862,-311.4,0.00025188,2]
[408335862,1773442240872,-169.24,0.00025192,2]
[408335863,1773442240882,-1000.0,0.00025287,2]
[408335864,1773442240892,-166.66,0.00025288,2]
[408335865,1773442240902,-399.12,0.00025423,2]
[408335866,1773442240912,-1000.0,0.00025561,2]
[408335867,1773442240921,-205.32,0.0002579,2]
[408335868,1773442240930,-1000.0,0.00025835,2]
[408335869,1773442240940,-3508.0,0.00025917,2]
[408335870,1773442240949,-620.0,0.00025917,2]
[408335871,1773442240959,-1343.0,0.00025917,2]
[408335872,1773442240968,-1259.0,0.00025917,2]
[408335873,1773442240978,-414.0,0.00025917,2]
[408335874,1773442240987,-1195.502,0.00025917,2]
[408335875,1773442240997,-246.8781872,0.00025917,2]
[408335876,1773442241006,-2043.0,0.00025917,2]
[408335877,1773442241015,-1000.0,0.00026109,2]
[408335878,1773442241025,-166.66,0.00026123,2]
[408335879,1773442241035,-1000.0,0.00026383,2]
[408335880,1773442241045,-399.12,0.00026528,2]
[408335881,1773442241055,-1999.0,0.00026657,2]
[408335882,1773442241064,-151.0,0.00026691,3]
[408335883,1773442241073,-151.0,0.00026691,3]
[408335884,1773442241082,-151.0,0.00026691,3]
[408335885,1773442241091,-151.0,0.00026691,3]
[408335886,1773442241101,-151.0,0.00026691,3]
[408335887,1773442241110,-151.0,0.00026691,3]
[408335888,1773442241119,-1000.0,0.00026931,2]
[408335889,1773442241128,-166.66,0.00026957,2]
[408335890,1773442241138,-500.0,0.00026973,2]
[408335891,1773442241147,-500.0,0.00026973,2]
[408335892,1773442241156,-501.61497251,0.00026973,2]
[408335893,1773442241165,-2000.0,0.00026976,2]
[408335894,1773442241175,-1000.0,0.00027205,2]
[408335895,1773442241185,-500.0,0.00027233,2]
[408335896,1773442241194,-500.0,0.00027233,2]
[408335897,1773442241203,-500.0,0.00027233,2]
[408335898,1773442241213,-500.0,0.00027233,2]
[408335899,1773442241222,-500.0,0.00027233,2]
[408335900,1773442241231,-500.0,0.00027233,2]
[408335901,1773442241241,-500.0,0.00027233,2]
[408335902,1773442241250,-500.0,0.00027233,2]
[408335903,1773442241260,-500.0,0.00027233,2]
[408335904,1773442241269,-500.0,0.00027233,2]
[408335905,1773442241278,-500.0,0.00027233,2]
[408335906,1773442241288,-500.0,0.00027233,2]
[408335907,1773442241297,-218.24578885,0.00027233,2]
[408335908,1773442241307,-165.23,0.0002729,2]
[408335909,1773442241316,-500.0,0.00027373,2]
[408335910,1773442241326,-500.0,0.00027373,2]
[408335911,1773442241335,-500.0,0.00027373,2]
[408335912,1773442241345,-500.0,0.00027373,2]
[408335913,1773442241354,-500.0,0.00027373,2]
[408335914,1773442241363,-500.0,0.00027373,2]
[408335915,1773442241372,-500.0,0.00027373,2]
[408335916,1773442241383,-3351.33016011,0.00027373,2]
[408335917,1773442241394,-500.0,0.00027473,5]
[408335918,1773442241403,-500.0,0.00027473,5]
[408335919,1773442241412,-500.0,0.00027473,5]
[408335920,1773442241422,-223.49735751,0.00027473,5]
[408335921,1773442241435,-500.0,0.00027473,5]
[408335922,1773442241444,-1000.0,0.00027479,2]
[408335923,1773442241453,-1000.0,0.00027521,5]
[408335924,1773442241463,-1000.0,0.00027521,5]
[408335925,1773442241473,-1000.0,0.00027753,2]
[408335926,1773442241483,-1000.0,0.00027781,5]
[408335927,1773442241493,-1000.0,0.00027781,5]
[408335928,1773442241503,-1000.0,0.00027781,5]
[408335929,1773442241512,-1000.0,0.00027781,5]
[408335930,1773442241522,-1000.0,0.00027781,5]
[408335931,1773442241533,-1000.0,0.00027781,5]
[408335932,1773442241542,-1000.0,0.00027781,5]
[408335933,1773442241552,-1000.0,0.00027781,5]
[408335934,1773442241562,-1000.0,0.00027781,5]
[408335935,1773442241572,-1000.0,0.00027781,5]
[408335936,1773442241582,-1000.0,0.00027781,5]
[408335937,1773442241591,-166.66,0.00027792,2]
[408335938,1773442241601,-1000.0,0.00027921,5]
[408335939,1773442241610,-411.2220305,0.00027921,5]
[408335940,1773442241624,-1000.0,0.00027921,5]
[408335941,1773442241633,-1000.0,0.00027921,5]
[408335942,1773442241643,-1000.0,0.00027921,5]
[408335943,1773442241652,-1000.0,0.00027921,5]
[408335944,1773442241663,-1000.0,0.00027921,5]
[408335945,1773442241672,-1000.0,0.00028021,5]
[408335946,1773442241682,-1000.0,0.00028021,5]
[408335947,1773442241692,-1000.0,0.00028021,5]
[408335948,1773442241701,-1000.0,0.00028021,5]
[408335949,1773442241711,-1000.0,0.00028027,2]
[408335950,1773442241720,-1500.0,0.00028069,5]
[408335951,1773442241730,-1500.0,0.00028069,5]
[408335952,1773442241739,-250.0,0.00028221,10]
[408335953,1773442241748,-1000.0,0.00028301,2]
[408335954,1773442241759,-1500.0,0.00028329,5]
[408335955,1773442241770,-1500.0,0.00028329,5]
[408335956,1773442241780,-1500.0,0.00028329,5]
[408335957,1773442241789,-1500.0,0.00028329,5]
[408335958,1773442241799,-1500.0,0.00028329,5]
[408335959,1773442241808,-1500.0,0.00028329,5]
[408335960,1773442241818,-1500.0,0.00028329,5]
[408335961,1773442241828,-1500.0,0.00028329,5]
[408335962,1773442241838,-1172.86663445,0.00028329,5]
[408335963,1773442241847,-1540.67453098,0.00028329,5]
[408335964,1773442241856,-1500.0,0.00028329,5]
[408335965,1773442241866,-500.0,0.00028373,5]
[408335966,1773442241875,-1500.0,0.00028468,5]
[408335967,1773442241885,-557.16695181,0.00028468,5]
[408335968,1773442241894,-1500.0,0.00028468,5]
[408335969,1773442241904,-1500.0,0.00028468,5]
[408335970,1773442241913,-1504.61822496,0.00028468,5]
[408335971,1773442241923,-1500.0,0.00028468,5]
[408335972,1773442241932,-3240.0,0.00028501,2]
[408335973,1773442241942,-1003.8642618,0.00028568,5]
[408335974,1773442241951,-1500.0,0.00028568,5]
[408335975,1773442241960,-344.53029886,0.00028568,5]
[408335976,1773442241969,-1500.0,0.00028568,5]
[408335977,1773442241978,-500.0,0.00028573,5]
[408335978,1773442241990,-500.0,0.00028573,5]
[408335979,1773442242000,-500.0,0.00028573,5]
[408335980,1773442242010,-500.0,0.00028573,5]
[408335981,1773442242019,-500.0,0.00028573,5]
[408335982,1773442242029,-500.0,0.00028573,5]
[408335983,1773442242038,-500.0,0.00028573,5]
[408335984,1773442242047,-621.90362035,0.00028573,5]
[408335985,1773442242056,-500.0,0.00028573,5]
[408335986,1773442242065,-500.96095128,0.00028573,5]
[408335987,1773442242074,-500.0,0.00028573,5]
[408335988,1773442242083,-500.0,0.00028573,5]
[408335989,1773442242092,-1000.0,0.00028575,2]
[408335990,1773442242101,-326.48,0.00028588,2]
[408335991,1773442242111,-5580.78,0.00028596,2]
[408335992,1773442242120,-2000.0,0.00028617,5]
[408335993,1773442242129,-2000.0,0.00028617,5]
[408335994,1773442242138,-166.66,0.00028627,2]
[408335995,1773442242147,-537.44,0.00028681,2]
[408335996,1773442242156,-5000.0,0.00028796,2]
[408335997,1773442242166,-1000.0,0.00028849,2]
[408335998,1773442242175,-2064.55995824,0.00028877,5]
[408335999,1773442242184,-1213.35334817,0.00028877,5]
[408336000,1773442242194,-756.88971875,0.00028877,5]
[408336001,1773442242207,-2000.0,0.00028877,5]
[408336002,1773442242217,-2000.0,0.00028877,5]
[408336003,1773442242227,-1659.40499402,0.00028877,5]
[408336004,1773442242237,-1667.4144315,0.00028877,5]
[408336005,1773442242246,-2000.0,0.00028877,5]
[408336006,1773442242256,-830.43690558,0.00028877,5]
[408336007,1773442242265,-3508.0,0.00028917,2]
[408336008,1773442242274,-620.0,0.00028917,2]
[408336009,1773442242283,-1343.0,0.00028917,2]
[408336010,1773442242292,-414.0,0.00028917,2]
[408336011,1773442242301,-1000.0,0.00028921,5]
[408336012,1773442242310,-2000.0,0.00029016,5]
[408336013,1773442242319,-2000.0,0.00029016,5]
[408336014,1773442242329,-173.84044557,0.00029016,5]
[408336015,1773442242339,-423.19430583,0.00029016,5]
[408336016,1773442242348,-185.99,0.00029053,2]
[408336017,1773442242358,-150.0,0.00029073,5]
[408336018,1773442242367,-165.94319756,0.00029073,5]
[408336019,1773442242377,-150.0,0.00029073,5]
[408336020,1773442242386,-451.46485762,0.00029116,5]
[408336021,1773442242395,-2000.0,0.00029116,5]
[408336024,1773442242404,-282.45803307,0.00029121,5]
[408336026,1773442242413,-1000.0,0.00029121,5]
[408336029,1773442242422,-1000.0,0.00029121,5]
[408336030,1773442242432,-1000.0,0.00029121,5]
[408336031,1773442242441,-1000.0,0.00029121,5]
[408336032,1773442242450,-1000.0,0.00029121,5]
[408336033,1773442242460,-1000.0,0.00029121,5]
[408336034,1773442242469,-944.76980756,0.00029121,5]
[408336035,1773442242478,-1000.0,0.00029121,5]
[408336036,1773442242487,-1000.0,0.00029121,5]
[408336037,1773442242497,-250.0,0.00029122,12]
[408336038,1773442242506,-500.0,0.00029122,30]
[408336039,1773442242516,-1000.0,0.00029123,2]
[408336040,1773442242526,-852.45780266,0.00029165,5]
[408336041,1773442242536,-1139.92342412,0.00029165,5]
[408336042,1773442242546,-1000.0,0.00029397,2]
[408336043,1773442242555,-497.89893193,0.00029425,5]
[408336045,1773442242564,-1039.2454142,0.00029425,5]
[408336046,1773442242575,-2500.0,0.00029425,5]
[408336047,1773442242584,-166.66,0.00029462,2]
[408336048,1773442242594,-1500.0,0.00029468,5]
[408336049,1773442242603,-726.86168835,0.00029564,5]
[408336050,1773442242612,-743.89521836,0.00029564,5]
[408336051,1773442242626,-250.0,0.00029621,5]
[408336052,1773442242636,-250.0,0.00029621,5]
[408336053,1773442242646,-1527.0,0.00029624,5]
[408336054,1773442242655,-1594.83845957,0.00029664,5]
[408336055,1773442242666,-726.96632032,0.00029668,5]
[408336056,1773442242675,-1500.0,0.00029668,5]
[408336057,1773442242684,-1500.0,0.00029668,5]
[408336058,1773442242694,-1500.0,0.00029668,5]
[408336059,1773442242704,-1500.0,0.00029668,5]
[408336060,1773442242713,-1046.50216354,0.00029668,5]
[408336061,1773442242722,-1500.0,0.00029668,5]
[408336062,1773442242732,-1500.0,0.00029668,5]
[408336063,1773442242742,-1999.0,0.00029671,2]
[408336064,1773442242751,-2000.0,0.00029673,2]
[408336065,1773442242760,-3351.33016008,0.0002982,2]
[408336066,1773442242769,-506.0,0.00029877,2]
[408336067,1773442242779,-2986.80125145,0.00029973,5]
[408336068,1773442242789,-3362.2,0.00030001,2]
[408336069,1773442242799,-2000.0,0.00030016,5]
[408336070,1773442242808,-3111.47648377,0.0003013,2]
[408336071,1773442242818,-350.0,0.00030168,5]
[408336072,1773442242827,-350.0,0.00030168,5]
[408336073,1773442242836,-821.0,0.00030211,30]
[408336074,1773442242845,-1390.0,0.00030211,30]
[408336075,1773442242855,-912.64258439,0.00030216,5]
[408336076,1773442242864,-1727.8080291,0.00030216,5]
[408336077,1773442242874,-2000.0,0.00030216,5]
[408336078,1773442242883,-2000.0,0.00030216,5]
[408336079,1773442242892,-2000.0,0.00030216,5]
[408336080,1773442242901,-1127.34118786,0.00030216,5]
[408336081,1773442242910,-165.23,0.00030322,2]
[408336082,1773442242920,-1354.92103429,0.00030564,5]
[408336083,1773442242929,-450.0,0.00030716,5]
[408336084,1773442242938,-450.0,0.00030716,5]
[408336085,1773442242948,-170.0,0.00030732,14]
[408336086,1773442242957,-450.0,0.00030732,14]
[408336089,1773442242966,-450.0,0.00030732,14]
[408336090,1773442242977,-450.0,0.00030732,14]
[408336091,1773442242986,-450.0,0.00030732,14]
[408336092,1773442242995,-450.0,0.00030732,14]
[408336093,1773442243004,-232.0,0.00030732,14]
[408336094,1773442243014,-1214.55915429,0.00030764,5]
[408336095,1773442243023,-1000.0,0.00030764,5]
[408336096,1773442243032,-500.0,0.00030907,10]
[408336097,1773442243041,-250.0,0.00030907,18]
[408336098,1773442243051,-506.0,0.00031099,3]
[408336099,1773442243060,-157.1,0.00031109,2]
[408336100,1773442243069,-890.7,0.000312,14]
[408336102,1773442243079,-550.0,0.00031264,5]
[408336104,1773442243089,-550.0,0.00031264,5]
[408336105,1773442243098,-500.0,0.00031788,2]
[408336106,1773442243108,-338.0447731,0.00031812,5]
[408336107,1773442243118,-650.0,0.00031812,5]
[408336108,1773442243127,-5563.66501089,0.00031817,2]
[408336109,1773442243136,-3508.0,0.00031917,2]
[408336110,1773442243146,-620.0,0.00031917,2]
[408336111,1773442243155,-1343.0,0.00031917,2]
[408336112,1773442243164,-414.0,0.00031917,2]
[408336113,1773442243173,-1705.02,0.00032059,2]